bitfinex/quotes_SOLUSD_20251116
["timestamp","ask_amount","ask_price","bid_price","bid_amount"]
[1763254057432,3.48779014,139.46,139.44,1.99999998]
[1763254058424,10.65832614,139.46,139.44,1.99999998]
[1763254060253,3.48779014,139.46,139.44,1.99999998]
[1763254060449,3.48779014,139.46,139.45,1.99999998]
[1763254061570,0.71,139.46,139.45,1.99999998]
[1763254062547,3.48779014,139.46,139.45,1.99999998]
[1763254062874,0.71,139.5,139.45,9.83097501]
[1763254063049,0.71,139.49,139.46,1.99999998]
[1763254063434,2.77779014,139.48,139.46,1.99999998]
[1763254064035,3.45779014,139.49,139.46,1.99999998]
[1763254064279,3.45779014,139.49,139.47,1.99999998]
[1763254065057,10.62690398,139.49,139.47,1.99999998]
[1763254065537,112.04839964,139.51,139.47,1.99999998]
[1763254065862,2.77779014,139.49,139.47,1.99999998]
[1763254066237,3.45779014,139.49,139.47,1.99999998]
[1763254066840,3.45779014,139.48,139.46,1.99999998]
[1763254067062,2.77779014,139.47,139.46,1.99999998]
[1763254067463,2.77779014,139.48,139.46,9.17050981]
[1763254067851,2.77779014,139.48,139.46,7.17050983]
[1763254068059,2.77779014,139.48,139.46,9.17050981]
[1763254068246,0.68,139.49,139.46,9.17050981]
[1763254068446,2.77779014,139.48,139.46,9.17050981]
[1763254069051,10.62729144,139.48,139.46,1.99999998]
[1763254069564,3.45779014,139.48,139.46,1.99999998]
[1763254070451,2.77779014,139.48,139.47,1.99999998]
[1763254070646,3.45779014,139.48,139.47,1.99999998]
[1763254073249,0.68,139.48,139.47,1.99999998]
[1763254073560,10.6272768,139.48,139.47,1.99999998]
[1763254074545,10.6272768,139.48,139.41,1.99999998]
[1763254074761,2.77779014,139.43,139.42,1.99999998]
[1763254075553,3.45779014,139.44,139.42,1.99999998]
[1763254076674,3.45779014,139.44,139.43,1.99999998]
[1763254077172,17.92616488,139.47,139.44,1.99999998]
[1763254077173,2.77779014,139.47,139.44,1.99999998]
[1763254077348,0.68,139.47,139.44,9.17126672]
[1763254077549,32.59860291,139.48,139.44,9.84126672]
[1763254077755,32.59860291,139.48,139.46,1.99999998]
[1763254077756,10.62740291,139.48,139.46,1.99999998]
[1763254078171,3.45779014,139.48,139.46,1.99999998]
[1763254078355,10.62730719,139.48,139.46,1.99999998]
[1763254080462,2.77779014,139.49,139.46,2.66999998]
[1763254080851,3.45779014,139.49,139.46,2.66999998]
[1763254081054,3.45779014,139.49,139.46,0.67]
[1763254081383,2.77779014,139.5,139.47,1.99999998]
[1763254081681,3.45779014,139.5,139.48,1.99999998]
[1763254083878,3.45779014,139.5,139.47,1.99999998]
[1763254084054,3.45779014,139.5,139.48,1.99999998]
[1763254085254,10.62632858,139.5,139.48,1.99999998]
[1763254085459,3.45779014,139.49,139.44,1.99999998]
[1763254085653,2.77779014,139.47,139.45,1.99999998]
[1763254085869,2.77779014,139.47,139.46,1.99999998]
[1763254086062,2.77779014,139.49,139.46,1.99999998]
[1763254086372,2.77779014,139.5,139.47,2.66999998]
[1763254087271,2.77779014,139.49,139.47,1.99999998]
[1763254087482,3.45779014,139.49,139.47,1.99999998]
[1763254088360,2.77779014,139.5,139.47,9.83989861]
[1763254088775,3.45779014,139.5,139.47,1.99999998]
[1763254089177,2.77779014,139.49,139.47,1.99999998]
[1763254089885,2.77779014,139.49,139.46,9.84029306]
[1763254090202,2.77779014,139.49,139.47,1.99999998]
[1763254091163,2.77779014,139.49,139.46,9.84029306]
[1763254091362,10.62678133,139.49,139.47,1.99999998]
[1763254091564,10.62678133,139.49,139.46,1.99999998]
[1763254091794,7.84899119,139.49,139.46,1.99999998]
[1763254091974,3.45779014,139.49,139.46,9.17046569]
[1763254092183,3.45779014,139.49,139.47,1.99999998]
[1763254093398,10.62677684,139.49,139.47,1.99999998]
[1763254094490,10.62677684,139.49,139.46,1.99999998]
[1763254094791,10.62677684,139.49,139.47,1.99999998]
[1763254095361,9.94677684,139.49,139.47,1.99999998]
[1763254095562,10.60677684,139.49,139.47,1.99999998]
[1763254095764,0.66,139.48,139.47,1.99999998]
[1763254096063,10.60677684,139.49,139.47,1.99999998]
[1763254096263,7.8289867,139.49,139.47,1.99999998]
[1763254096486,10.60677684,139.49,139.47,1.99999998]
[1763254097286,9.94677684,139.49,139.47,1.99999998]
[1763254097695,0.66,139.48,139.47,1.99999998]
[1763254098518,10.60677684,139.49,139.47,1.99999998]
[1763254099509,10.60677684,139.49,139.46,1.99999998]
[1763254099813,10.60677684,139.49,139.47,1.99999998]
[1763254100286,7.8289867,139.49,139.47,1.99999998]
[1763254100487,10.60677684,139.49,139.47,1.99999998]
[1763254100708,9.94677684,139.49,139.47,1.99999998]
[1763254100918,2.77779014,139.5,139.48,0.66]
[1763254101084,2.77779014,139.51,139.48,0.66]
[1763254101696,3.43779014,139.51,139.48,2.65999998]
[1763254102007,2.77779014,139.5,139.48,2.65999998]
[1763254102604,0.66,139.51,139.48,2.65999998]
[1763254102605,10.60581355,139.51,139.48,2.65999998]
[1763254103611,10.60581355,139.51,139.48,0.66]
[1763254103813,10.60581355,139.51,139.48,2.65999998]
[1763254104103,3.43779014,139.5,139.48,1.99999998]
[1763254104320,10.60626435,139.5,139.48,1.99999998]
[1763254104513,9.94626435,139.5,139.48,1.99999998]
[1763254104715,3.43779014,139.49,139.45,1.99999998]
[1763254104899,2.77779014,139.48,139.47,1.99999998]
[1763254106105,10.60678819,139.49,139.47,1.99999998]
[1763254106597,9.94678819,139.49,139.47,1.99999998]
[1763254107099,2.77779014,139.49,139.47,1.99999998]
[1763254107301,10.60649927,139.5,139.48,1.99999998]
[1763254108408,3.43779014,139.5,139.48,1.99999998]
[1763254108814,2.77779014,139.49,139.48,1.99999998]
[1763254109929,3.43779014,139.49,139.48,1.99999998]
[1763254110219,10.60633593,139.5,139.48,1.99999998]
[1763254112612,0.66,139.49,139.48,1.99999998]
[1763254113716,9.60776248,139.5,139.48,1.99999998]
[1763254114618,2.43921669,139.5,139.48,1.99999998]
[1763254115203,8.94737708,139.51,139.48,9.1693694]
[1763254115394,8.94737708,139.51,139.48,9.8293694]
[1763254116221,9.60737708,139.51,139.48,9.8293694]
[1763254116511,2.43921669,139.51,139.48,9.8293694]
[1763254117921,9.60719062,139.51,139.48,9.8293694]
[1763254119326,9.60719062,139.51,139.48,9.1693694]
[1763254119824,2.43921669,139.51,139.48,9.8293694]
[1763254120134,2.43921669,139.53,139.5,1.99999998]
[1763254120331,2.43921669,139.52,139.5,1.99999998]
[1763254120704,0.66,139.51,139.5,1.99999998]
[1763254121205,2.43921669,139.51,139.5,1.99999998]
[1763254121833,0.66,139.51,139.5,1.99999998]
[1763254122511,8.94670578,139.52,139.5,1.99999998]
[1763254122711,9.60670578,139.52,139.5,1.99999998]
[1763254122895,1.77921669,139.52,139.5,9.16839131]
[1763254123102,0.66,139.53,139.51,1.99999998]
[1763254123103,2.43921669,139.53,139.51,1.99999998]
[1763254123305,2.43921669,139.53,139.51,9.16784694]
[1763254123507,111.36670024,139.54,139.52,1.99999998]
[1763254123508,104.2,139.54,139.52,1.99999998]
[1763254123808,104.2,139.54,139.53,1.99999998]
[1763254124003,2.44921669,139.55,139.53,1.99999998]
[1763254125025,8.94524849,139.55,139.53,1.99999998]
[1763254125228,0.67,139.54,139.53,1.99999998]
[1763254125413,2.44921669,139.54,139.53,1.99999998]
[1763254126106,0.67,139.54,139.53,1.99999998]
[1763254126406,1.77921669,139.54,139.53,1.99999998]
[1763254128429,9.61524849,139.55,139.53,1.99999998]
[1763254128816,122.11266971,139.57,139.53,1.99999998]
[1763254128817,104.2,139.57,139.53,1.99999998]
[1763254129139,1.77921669,139.55,139.53,1.99999998]
[1763254129608,2.44921669,139.55,139.53,1.99999998]
[1763254130229,0.67,139.55,139.53,1.99999998]
[1763254130434,2.44921669,139.56,139.53,9.16689847]
[1763254131850,0.67,139.55,139.53,9.16689847]
[1763254132032,0.67,139.55,139.53,1.99999998]
[1763254132333,1.77921669,139.54,139.53,1.99999998]
[1763254132706,2.44921669,139.54,139.53,1.99999998]
[1763254133118,9.61562058,139.54,139.51,1.99999998]
[1763254133348,1.77921669,139.52,139.5,1.99999998]
[1763254133645,1.77921669,139.51,139.5,1.99999998]
[1763254134510,9.6167998,139.52,139.5,1.99999998]
[1763254136433,1.77921669,139.51,139.5,1.99999998]
[1763254137932,9.6167998,139.52,139.5,1.99999998]
[1763254139419,0.67,139.51,139.49,1.99999998]
[1763254139623,1.77921669,139.5,139.47,1.99999998]
[1763254139933,1.77921669,139.5,139.49,1.99999998]
[1763254140134,2.44921669,139.5,139.49,1.99999998]
[1763254140738,1.77921669,139.5,139.49,1.99999998]
[1763254141425,2.44921669,139.5,139.49,1.99999998]
[1763254141718,1.77921669,139.5,139.48,1.99999998]
[1763254141923,2.44921669,139.5,139.48,1.99999998]
[1763254142936,2.44921669,139.51,139.49,1.99999998]
[1763254143122,9.61727756,139.51,139.49,1.99999998]
[1763254143323,8.94727756,139.51,139.49,1.99999998]
[1763254143516,9.61727756,139.51,139.49,1.99999998]
[1763254143838,104.2,139.55,139.51,1.99999998]
[1763254143839,0.67,139.54,139.51,1.99999998]
[1763254144036,1.77921669,139.53,139.51,1.99999998]
[1763254144420,2.44921669,139.53,139.51,1.99999998]
[1763254144916,1.77921669,139.53,139.51,1.99999998]
[1763254145114,2.44921669,139.52,139.51,1.99999998]
[1763254145317,2.44921669,139.52,139.48,1.99999998]
[1763254145634,2.44921669,139.52,139.5,1.99999998]
[1763254145635,0.67,139.52,139.5,1.99999998]
[1763254145834,0.67,139.51,139.5,1.99999998]
[1763254146430,1.77921669,139.52,139.5,1.99999998]
[1763254146636,2.44921669,139.52,139.5,1.99999998]
[1763254147339,2.44921669,139.54,139.51,1.99999998]
[1763254147541,104.2,139.55,139.52,1.99999998]
[1763254147542,106.64921669,139.55,139.52,1.99999998]
[1763254147730,113.8151072,139.55,139.52,1.99999998]
[1763254148045,2.44921669,139.54,139.52,1.99999998]
[1763254149426,2.44921669,139.54,139.52,9.1672969]
[1763254149639,1.77921669,139.54,139.52,9.1672969]
[1763254149844,106.64921669,139.55,139.53,1.99999998]
[1763254150753,0.67,139.57,139.55,1.99999998]
[1763254151045,1.77921669,139.56,139.55,1.99999998]
[1763254151433,2.44921669,139.56,139.55,1.99999998]
[1763254152147,9.61459358,139.56,139.55,1.99999998]
[1763254152343,1.77921669,139.56,139.55,1.99999998]
[1763254152519,1.77921669,139.56,139.51,1.99999998]
[1763254152719,1.77921669,139.53,139.52,1.99999998]
[1763254154040,1.77921669,139.53,139.51,1.99999998]
[1763254154833,8.94613419,139.53,139.51,1.99999998]
[1763254156253,9.64613419,139.53,139.5,1.99999998]
[1763254156548,9.64613419,139.53,139.51,1.99999998]
[1763254157652,8.94576549,139.54,139.51,1.99999998]
[1763254157829,9.64576549,139.54,139.51,1.99999998]
[1763254158025,9.64576549,139.54,139.5,9.88834754]
[1763254158227,9.64576549,139.54,139.51,1.99999998]
[1763254158936,7.1665488,139.54,139.52,1.99999998]
[1763254159136,8.94576549,139.54,139.5,1.99999998]
[1763254159455,0.7,139.53,139.52,1.99999998]
[1763254160148,9.64576549,139.54,139.52,1.99999998]
[1763254160530,9.64576549,139.54,139.51,1.99999998]
[1763254160745,9.64576549,139.54,139.5,1.99999998]
[1763254161258,9.64576549,139.54,139.52,1.99999998]
[1763254162056,1.77921669,139.53,139.5,9.88836585]
[1763254162625,8.94613419,139.53,139.5,2.71999998]
[1763254162847,9.64613419,139.53,139.5,1.99999998]
[1763254163055,9.64613419,139.53,139.52,1.99999998]
[1763254163252,9.64613419,139.53,139.51,1.99999998]
[1763254164156,0.7,139.53,139.52,1.99999998]
[1763254164335,8.94575052,139.54,139.52,1.99999998]
[1763254164532,9.64575052,139.54,139.52,1.99999998]
[1763254165764,2.47921669,139.53,139.5,1.99999998]
[1763254166955,9.64641417,139.53,139.51,1.99999998]
[1763254167260,9.64641417,139.53,139.5,1.99999998]
[1763254167752,8.94641417,139.53,139.52,1.99999998]
[1763254167942,7.16719748,139.53,139.52,1.99999998]
[1763254169260,7.16719748,139.53,139.5,9.88843175]
[1763254169562,7.86719748,139.53,139.52,1.99999998]
[1763254170064,0.7,139.53,139.52,1.99999998]
[1763254170658,7.8669175,139.53,139.51,1.99999998]
[1763254171362,7.8669175,139.53,139.52,1.99999998]
[1763254172562,7.8669175,139.53,139.51,1.99999998]
[1763254174063,0.7,139.53,139.52,1.99999998]
[1763254175577,10.64537977,139.53,139.5,2.71999998]
[1763254178178,9.94510261,139.54,139.51,2.71999998]
[1763254178392,3.47846227,139.54,139.51,1.99999998]
[1763254178670,3.47846227,139.53,139.5,1.99999998]
[1763254178869,3.47846227,139.53,139.49,2.71999998]
[1763254179169,3.47846227,139.53,139.5,1.99999998]
[1763254179170,0.7,139.52,139.5,1.99999998]
[1763254179347,3.47846227,139.52,139.5,1.99999998]
[1763254179545,3.47846227,139.52,139.51,1.99999998]
[1763254179770,3.47846227,139.52,139.49,9.8888775]
[1763254179944,3.47846227,139.52,139.49,2.71999998]
[1763254180145,7.86794495,139.51,139.49,2.71999998]
[1763254180551,7.16794495,139.51,139.49,2.71999998]
[1763254180755,7.16794495,139.51,139.5,1.99999998]
[1763254181066,10.64611642,139.52,139.5,1.99999998]
[1763254182545,2.77846227,139.52,139.51,1.99999998]
[1763254183947,7.16660813,139.54,139.51,2.67999998]
[1763254184152,2.77846227,139.53,139.51,2.67999998]
[1763254185651,3.44846227,139.53,139.51,2.67999998]
[1763254185870,0.67,139.53,139.51,1.99999998]
[1763254186070,3.44846227,139.53,139.51,1.99999998]
[1763254186284,10.61541381,139.53,139.5,9.84833921]
[1763254186577,10.61541381,139.53,139.51,1.99999998]
[1763254187275,3.44846227,139.52,139.5,1.99999998]
[1763254187782,3.44846227,139.52,139.5,2.67999998]
[1763254187947,3.44846227,139.52,139.51,1.99999998]
[1763254188571,0.67,139.52,139.51,1.99999998]
[1763254188777,3.44846227,139.53,139.51,1.99999998]
[1763254188955,10.61567766,139.53,139.51,1.99999998]
[1763254190577,7.83721539,139.53,139.51,1.99999998]
[1763254190785,10.61567766,139.53,139.51,1.99999998]
[1763254191853,9.94567766,139.53,139.51,1.99999998]
[1763254192072,0.67,139.52,139.51,1.99999998]
[1763254192378,0.67,139.52,139.5,9.84837151]
[1763254192570,0.67,139.52,139.51,1.99999998]
[1763254192978,0.67,139.52,139.49,7.84874384]
[1763254192979,10.61589346,139.52,139.49,1.99999998]
[1763254193274,2.77846227,139.51,139.49,1.99999998]
[1763254193581,3.44846227,139.5,139.49,1.99999998]
[1763254193766,2.77846227,139.5,139.49,2.67999998]
[1763254194076,2.77846227,139.51,139.5,1.99999998]
[1763254194380,10.61590132,139.52,139.5,1.99999998]
[1763254194977,0.67,139.52,139.5,1.99999998]
[1763254195176,3.44846227,139.52,139.5,1.99999998]
[1763254197261,2.77846227,139.52,139.5,9.84842539]
[1763254197787,2.77846227,139.52,139.51,0.68]
[1763254197990,3.44846227,139.53,139.51,0.68]
[1763254198196,2.77846227,139.53,139.51,2.67999998]
[1763254198388,2.77846227,139.54,139.51,2.67999998]
[1763254198587,2.77846227,139.54,139.52,0.68]
[1763254200783,104.87,139.55,139.52,9.84726895]
[1763254200963,104.2,139.55,139.53,2.67999998]
[1763254201291,104.2,139.55,139.53,0.68]
[1763254201489,104.2,139.55,139.53,2.67999998]
[1763254201680,104.87,139.55,139.53,2.67999998]
[1763254201984,107.64846227,139.55,139.53,2.67999998]
[1763254203961,3.44846227,139.55,139.53,2.67999998]
[1763254204775,3.44846227,139.55,139.54,1.99999998]
[1763254205086,2.77846227,139.56,139.54,2.67999998]
[1763254205293,2.77846227,139.57,139.54,0.68]
[1763254205590,2.77846227,139.56,139.54,2.67999998]
[1763254205772,104.2,139.58,139.54,2.67999998]
[1763254206092,2.77846227,139.59,139.57,1.99999998]
[1763254206292,3.44846227,139.59,139.57,1.99999998]
[1763254207166,0.67,139.61,139.58,2.67999998]
[1763254207373,2.77846227,139.6,139.58,2.67999998]
[1763254207678,0.67,139.61,139.58,2.67999998]
[1763254207884,3.44846227,139.61,139.6,1.99999998]
[1763254208393,3.74280555,139.64,139.6,2.67999998]
[1763254208699,3.44846227,139.64,139.61,2.67999998]
[1763254208878,3.44846227,139.64,139.62,1.99999998]
[1763254209292,2.77846227,139.63,139.62,1.99999998]
[1763254210593,3.44846227,139.64,139.62,1.99999998]
[1763254211001,3.44846227,139.63,139.6,21.51540144]
[1763254211181,2.77846227,139.62,139.59,2.67999998]
[1763254211381,3.44846227,139.62,139.59,2.67999998]
[1763254211596,2.77846227,139.61,139.6,1.99999998]
[1763254212185,2.77846227,139.63,139.61,1.99999998]
[1763254212395,7.1609494,139.65,139.62,1.99999998]
[1763254212396,2.77846227,139.64,139.62,1.99999998]
[1763254212697,10.60941167,139.65,139.63,1.99999998]
[1763254213395,0.72,139.64,139.63,1.99999998]
[1763254213885,3.49846227,139.64,139.63,1.99999998]
[1763254214198,10.65979296,139.64,139.62,1.99999998]
[1763254214415,2.77846227,139.63,139.62,1.99999998]
[1763254214789,3.49846227,139.64,139.62,1.99999998]
[1763254215182,3.49846227,139.64,139.63,1.99999998]
[1763254216586,2.77846227,139.65,139.63,2.64999998]
[1763254216787,3.49846227,139.66,139.63,2.64999998]
[1763254217179,3.49846227,139.66,139.63,0.65]
[1763254217380,3.49846227,139.66,139.63,9.81178469]
[1763254218377,2.77846227,139.66,139.64,0.65]
[1763254218577,3.69846227,139.67,139.64,2.64999998]
[1763254219004,2.77846227,139.66,139.64,1.99999998]
[1763254219203,3.49846227,139.66,139.64,1.99999998]
[1763254220200,10.65876132,139.66,139.64,1.99999998]
[1763254221088,2.77846227,139.65,139.64,1.99999998]
[1763254221496,3.49846227,139.65,139.63,1.99999998]
[1763254222026,3.49846227,139.65,139.63,2.64999998]
[1763254222994,10.65929825,139.65,139.63,2.64999998]
[1763254223309,9.93929825,139.65,139.63,2.64999998]
[1763254224110,10.65929825,139.65,139.63,1.99999998]
[1763254224308,10.65929825,139.65,139.62,1.99999998]
[1763254224309,3.49846227,139.64,139.62,1.99999998]
[1763254224606,3.49846227,139.64,139.63,1.99999998]
[1763254224787,0.72,139.64,139.63,1.99999998]
[1763254224988,2.77846227,139.65,139.64,1.99999998]
[1763254225196,3.49846227,139.65,139.64,1.99999998]
[1763254226412,10.65922131,139.65,139.64,1.99999998]
[1763254228322,7.88075904,139.65,139.64,1.99999998]
[1763254228796,7.88075904,139.65,139.63,1.99999998]
[1763254228989,7.88075904,139.65,139.64,1.99999998]
[1763254229314,0.72,139.66,139.64,1.99999998]
[1763254229495,2.77846227,139.66,139.64,1.99999998]
[1763254229706,0.72,139.65,139.64,1.99999998]
[1763254231113,7.88075904,139.65,139.64,1.99999998]
[1763254233622,9.93886323,139.66,139.64,1.99999998]
[1763254233807,3.69846227,139.67,139.64,2.64999998]
[1763254234003,3.69846227,139.67,139.65,2.64999998]
[1763254234004,0.92,139.67,139.65,2.64999998]
[1763254234219,10.13828772,139.67,139.65,1.99999998]
[1763254234406,0.72,139.66,139.65,1.99999998]
[1763254234932,7.88024631,139.66,139.65,1.99999998]
[1763254236949,9.65496771,139.66,139.65,1.99999998]
[1763254248338,9.65496771,139.66,139.63,1.99999998]
[1763254248339,27.55558349,139.66,139.63,1.99999998]
[1763254248523,0.66,139.65,139.64,1.99999998]
[1763254248726,2.4347214,139.65,139.64,1.99999998]
[1763254250037,0.66,139.65,139.64,1.99999998]
[1763254250238,7.16127184,139.64,139.63,1.99999998]
[1763254250441,8.93599324,139.64,139.63,1.99999998]
[1763254250626,9.59599324,139.64,139.63,1.99999998]
[1763254251026,7.82079242,139.65,139.63,1.99999998]
[1763254251234,0.66,139.65,139.64,1.99999998]
[1763254251433,1.7747214,139.66,139.64,1.99999998]
[1763254251742,2.6347214,139.67,139.64,2.66999998]
[1763254252450,9.79447799,139.67,139.65,1.99999998]
[1763254254324,8.93496771,139.66,139.65,1.99999998]
[1763254255625,9.59496771,139.66,139.65,1.99999998]
[1763254256722,1.7747214,139.66,139.65,1.99999998]
[1763254257129,8.93496771,139.66,139.65,1.99999998]
[1763254257749,9.59496771,139.66,139.65,1.99999998]
[1763254257954,8.93496771,139.66,139.65,1.99999998]
[1763254258441,8.93496771,139.66,139.64,2.66999998]
[1763254258649,8.93496771,139.66,139.65,2.66999998]
[1763254258954,8.93496771,139.66,139.65,1.99999998]
[1763254260548,9.59496771,139.66,139.65,1.99999998]
[1763254261356,0.66,139.66,139.65,1.99999998]
[1763254261547,9.59496771,139.66,139.65,1.99999998]
[1763254261746,0.66,139.66,139.65,1.99999998]
[1763254261950,2.6347214,139.67,139.65,1.99999998]
[1763254262259,1.7747214,139.66,139.65,1.99999998]
[1763254262465,2.4347214,139.66,139.65,1.99999998]
[1763254263157,1.7747214,139.66,139.65,1.99999998]
[1763254263856,9.79460301,139.67,139.65,1.99999998]
[1763254265057,9.13460301,139.67,139.65,1.99999998]
[1763254265263,0.66,139.66,139.65,1.99999998]
[1763254265444,9.79460301,139.67,139.65,1.99999998]
[1763254266986,9.79460301,139.67,139.66,1.99999998]
[1763254271568,2.6347214,139.67,139.66,1.99999998]
[1763254271941,9.79445505,139.67,139.66,1.99999998]
[1763254273674,0.2,139.67,139.66,2.65999998]
[1763254273966,0.2,139.67,139.66,34.24616769]
[1763254274834,0.2,139.67,139.66,44.03499538]
[1763254275170,1e-08,139.67,139.66,35.10002767]
[1763254275339,1e-08,139.67,139.66,7.30159111]
[1763254275541,1e-08,139.67,139.66,11.59496769]
[1763254276342,1e-08,139.67,139.66,21.38379538]
[1763254276754,1e-08,139.67,139.66,29.21003287]
[1763254277841,0.2,139.72,139.71,1.99999998]
[1763254278253,0.2,139.72,139.71,2.65999998]
[1763254279375,0.2,139.72,139.71,9.81768375]
[1763254280655,0.2,139.72,139.71,21.38123284]
[1763254287032,0.2,139.72,139.71,30.31012144]
[1763254287307,0.2,139.72,139.71,11.59240515]
[1763254288210,1.7747214,139.76,139.71,9.81768375]
[1763254288406,1.7747214,139.76,139.75,1.99999998]
[1763254288819,1.7747214,139.76,139.73,1.99999998]
[1763254289113,1.7747214,139.74,139.73,1.99999998]
[1763254289323,1.7747214,139.74,139.72,1.99999998]
[1763254289489,1.7747214,139.73,139.71,1.99999998]
[1763254289690,1.7747214,139.72,139.71,1.99999998]
[1763254290223,8.93152184,139.73,139.7,1.99999998]
[1763254290403,1.7747214,139.72,139.71,1.99999998]
[1763254290795,9.60152184,139.73,139.71,1.99999998]
[1763254291406,2.4447214,139.73,139.71,1.99999998]
[1763254291590,2.4447214,139.73,139.72,1.99999998]
[1763254291899,9.60138067,139.73,139.7,1.99999998]
[1763254292214,9.60138067,139.73,139.71,1.99999998]
[1763254292590,9.60138067,139.73,139.7,1.99999998]
[1763254292791,9.60138067,139.73,139.71,1.99999998]
[1763254293008,9.60138067,139.73,139.7,1.99999998]
[1763254293009,2.4447214,139.72,139.7,1.99999998]
[1763254293207,0.67,139.72,139.71,1.99999998]
[1763254293920,7.82717148,139.72,139.71,1.99999998]
[1763254294417,9.60189288,139.72,139.71,1.99999998]
[1763254295020,1.7747214,139.72,139.71,1.99999998]
[1763254296921,2.77098532,139.72,139.71,1.99999998]
[1763254298433,106.97098532,139.74,139.71,2.65999998]
[1763254298610,106.97098532,139.74,139.73,1.99999998]
[1763254299130,2.77098532,139.74,139.73,1.99999998]
[1763254299824,2.77098532,139.75,139.74,1.99999998]
[1763254301331,10.59662038,139.75,139.73,1.99999998]
[1763254301516,7.82563506,139.75,139.74,1.99999998]
[1763254301707,7.15563506,139.75,139.74,1.99999998]
[1763254302432,7.82523857,139.76,139.74,1.99999998]
[1763254302733,2.77098532,139.75,139.74,1.99999998]
[1763254303326,112.02492844,139.77,139.74,1.99999998]
[1763254303327,2.77098532,139.76,139.74,1.99999998]
[1763254304029,2.77098532,139.75,139.74,1.99999998]
[1763254304553,3.45098532,139.75,139.74,1.99999998]
[1763254304733,10.60662038,139.75,139.73,1.99999998]
[1763254304912,2.77098532,139.74,139.73,1.99999998]
[1763254305229,7.83563506,139.75,139.73,1.99999998]
[1763254305425,2.77098532,139.74,139.73,1.99999998]
[1763254306517,10.60713245,139.74,139.73,1.99999998]
[1763254306719,28.49750027,139.74,139.71,1.99999998]
[1763254306915,3.45098532,139.73,139.72,1.99999998]
[1763254309536,9.92764459,139.73,139.72,1.99999998]
[1763254309738,2.77098532,139.73,139.72,1.99999998]
[1763254310118,10.6073744,139.74,139.72,1.99999998]
[1763254311737,2.77098532,139.73,139.72,1.99999998]
[1763254312621,2.77098532,139.76,139.74,1.99999998]
[1763254312824,2.77098532,139.76,139.74,2.66999998]
[1763254313335,2.77098532,139.76,139.74,1.99999998]
[1763254313538,2.77098532,139.76,139.74,2.66999998]
[1763254313839,9.92617906,139.76,139.74,1.99999998]
[1763254314012,10.60617906,139.76,139.74,1.99999998]
[1763254314211,2.77098532,139.76,139.74,1.99999998]
[1763254314413,106.97098532,139.77,139.75,2.66999998]
[1763254314927,7.15431575,139.78,139.76,0.67]
[1763254315118,7.15431575,139.78,139.76,2.66999998]
[1763254315335,7.15423618,139.78,139.76,2.66999998]
[1763254315534,9.9252215,139.78,139.76,1.99999998]
[1763254315841,10.6052215,139.78,139.76,1.99999998]
[1763254317642,2.77098532,139.77,139.76,1.99999998]
[1763254318217,10.6052215,139.78,139.76,1.99999998]
[1763254320522,9.9252215,139.78,139.76,1.99999998]
[1763254320714,10.6052215,139.78,139.76,1.99999998]
[1763254320918,10.6052215,139.78,139.75,2.66999998]
[1763254320919,2.77098532,139.77,139.75,2.66999998]
[1763254321117,2.77098532,139.77,139.76,1.99999998]
[1763254321538,2.77098532,139.77,139.76,2.66999998]
[1763254321746,2.77098532,139.77,139.76,1.99999998]
[1763254322230,3.45098532,139.77,139.74,1.99999998]
[1763254322419,9.92662038,139.75,139.74,1.99999998]
[1763254322749,9.92662038,139.75,139.73,1.99999998]
[1763254322924,2.77098532,139.74,139.73,1.99999998]
[1763254323327,3.45098532,139.74,139.72,1.99999998]
[1763254323533,3.45098532,139.73,139.72,1.99999998]
[1763254323734,3.45098532,139.73,139.7,2.66999998]
[1763254323949,2.77098532,139.72,139.71,1.99999998]
[1763254324459,9.9281568,139.72,139.71,1.99999998]
[1763254325643,9.9281568,139.72,139.7,2.66999998]
[1763254325940,9.9281568,139.72,139.71,1.99999998]
[1763254327458,2.77098532,139.72,139.71,1.99999998]
[1763254328530,10.60778937,139.73,139.72,1.99999998]
[1763254328959,10.60778937,139.73,139.71,1.99999998]
[1763254329367,10.60778937,139.73,139.72,1.99999998]
[1763254331543,9.92778937,139.73,139.72,1.99999998]
[1763254332261,9.92778937,139.73,139.71,1.99999998]
[1763254332454,10.60778937,139.73,139.71,1.99999998]
[1763254333139,3.46098532,139.72,139.7,1.99999998]
[1763254333349,9.92839805,139.72,139.69,2.71999998]
[1763254333556,9.92839805,139.72,139.71,1.99999998]
[1763254333735,10.6178464,139.73,139.7,2.71999998]
[1763254334056,10.6178464,139.73,139.71,1.99999998]
[1763254334254,104.2,139.76,139.71,1.99999998]
[1763254334458,2.77098532,139.74,139.71,1.99999998]
[1763254334657,2.77098532,139.72,139.71,1.99999998]
[1763254335465,9.9281568,139.72,139.71,1.99999998]
[1763254336862,2.77098532,139.73,139.71,2.71999998]
[1763254337060,2.77098532,139.73,139.72,2.71999998]
[1763254337366,9.92764459,139.73,139.72,1.99999998]
[1763254337572,9.92764459,139.73,139.72,2.71999998]